[Event "Titled Tuesday Blitz November 01 Late 2022"]
[White "Bortnyk, Olexandr"]
[Black "Itgelt, Khuyagtsogt"]
[WhiteFideId "14120828"]
[BlackFideId "4902912"]
[WhiteElo "2723"]
[BlackElo "2084"]
[Result "1-0"]
[Round "02"]
[TimeControl "180+1"]
[Date "2022.11.01"]
[WhiteClock "0:01:03"]
[BlackClock "0:00:04"]

1. d4 {[%clk 0:03:00]}  d5 {[%clk 0:02:59]} 2. Nc3 {[%clk 0:03:00]}  Nf6 {[%clk 0:02:58]} 3. Bf4 {[%clk 0:03:00]}  e6 {[%clk 0:02:59]} 4. Nb5 {[%clk 0:03:00]}  Bb4+ {[%clk 0:02:59]} 5. c3 {[%clk 0:03:00]}  Ba5 {[%clk 0:03:00]} 6. a4 {[%clk 0:03:01]}  a6 {[%clk 0:02:53]} 7. b4 {[%clk 0:03:01]}  Bxb4 {[%clk 0:02:42]} 8. cxb4 {[%clk 0:02:55]}  axb5 {[%clk 0:02:42]} 9. axb5 {[%clk 0:02:55]}  Rxa1 {[%clk 0:02:41]} 10. Qxa1 {[%clk 0:02:56]}  Qe7 {[%clk 0:02:41]} 11. Qb1 {[%clk 0:02:43]}  Nh5 {[%clk 0:02:36]} 12. Bg3 {[%clk 0:02:31]}  Nxg3 {[%clk 0:02:23]} 13. hxg3 {[%clk 0:02:32]}  h6 {[%clk 0:02:24]} 14. Nf3 {[%clk 0:02:31]}  Nd7 {[%clk 0:02:23]} 15. e3 {[%clk 0:02:31]}  Nb6 {[%clk 0:02:22]} 16. Bd3 {[%clk 0:02:32]}  Bd7 {[%clk 0:02:11]} 17. O-O {[%clk 0:02:30]}  Nc4 {[%clk 0:02:05]} 18. Bxc4 {[%clk 0:02:27]}  dxc4 {[%clk 0:02:06]} 19. Qe4 {[%clk 0:02:26]}  Qxb4 {[%clk 0:01:39]} 20. Qxb7 {[%clk 0:02:22]}  O-O {[%clk 0:01:38]} 21. Ne5 {[%clk 0:02:09]}  Bxb5 {[%clk 0:01:28]} 22. Qxc7 {[%clk 0:02:03]}  f6 {[%clk 0:00:55]} 23. Ng6 {[%clk 0:01:59]}  Rf7 {[%clk 0:00:56]} 24. Qc8+ {[%clk 0:01:55]}  Kh7 {[%clk 0:00:55]} 25. Nf4 {[%clk 0:01:50]}  Bd7 {[%clk 0:00:43]} 26. Qc7 {[%clk 0:01:47]}  g5 {[%clk 0:00:37]} 27. Nh5 {[%clk 0:01:46]}  Kg6 {[%clk 0:00:19]} 28. g4 {[%clk 0:01:35]}  f5 {[%clk 0:00:20]} 29. gxf5+ {[%clk 0:01:22]}  exf5 {[%clk 0:00:17]} 30. Ng3 {[%clk 0:01:22]}  Kh7 {[%clk 0:00:03]} 31. Rc1 {[%clk 0:01:16]}  Be6 {[%clk 0:00:03]} 32. Qc6 {[%clk 0:01:09]}  Qe7 {[%clk 0:00:03]} 33. d5 {[%clk 0:01:08]}  Bd7 {[%clk 0:00:03]} 34. Qxc4 {[%clk 0:01:07]}  f4 {[%clk 0:00:04]} 35. d6 {[%clk 0:01:04]}  Qe6 {[%clk 0:00:03]} 36. Qxe6 {[%clk 0:01:04]}  Bxe6 {[%clk 0:00:04]} 37. Ne4 {[%clk 0:01:05]}  Kg6 {[%clk 0:00:03]} 38. Rc7 {[%clk 0:01:04]}  Rd7 {[%clk 0:00:03]} 39. Rxd7 {[%clk 0:01:03]}  Bxd7 {[%clk 0:00:04]} 40. Nc5 {[%clk 0:01:03]} 1-0


[Site "https://www.chess.com"]

[Event "Titled Tuesday Blitz November 01 Late 2022"]
[White "Brown, Andrew"]
[Black "Bilan, Danila"]
[WhiteFideId "3206513"]
[BlackFideId "24161918"]
[WhiteElo "2245"]
[BlackElo "2203"]
[Result "1-0"]
[Round "02"]
[TimeControl "180+1"]
[Date "2022.11.02"]
[WhiteClock "0:00:53"]
[BlackClock "0:00:06"]

1. d4 {[%clk 0:02:57]}  d5 {[%clk 0:02:59]} 2. c4 {[%clk 0:02:57]}  c6 {[%clk 0:03:00]} 3. Nc3 {[%clk 0:02:56]}  Nf6 {[%clk 0:03:00]} 4. Nf3 {[%clk 0:02:56]}  e6 {[%clk 0:03:00]} 5. Bg5 {[%clk 0:02:57]}  Nbd7 {[%clk 0:03:00]} 6. e3 {[%clk 0:02:56]}  Qa5 {[%clk 0:02:56]} 7. Nd2 {[%clk 0:02:54]}  Ne4 {[%clk 0:02:53]} 8. Ndxe4 {[%clk 0:02:51]}  dxe4 {[%clk 0:02:54]} 9. Bf4 {[%clk 0:02:50]}  Bb4 {[%clk 0:02:54]} 10. Qc2 {[%clk 0:02:50]}  O-O {[%clk 0:02:51]} 11. Be2 {[%clk 0:02:47]}  f6 {[%clk 0:02:44]} 12. O-O {[%clk 0:02:47]}  Bxc3 {[%clk 0:02:44]} 13. bxc3 {[%clk 0:02:46]}  e5 {[%clk 0:02:43]} 14. Bg3 {[%clk 0:02:45]}  f5 {[%clk 0:02:37]} 15. c5 {[%clk 0:02:29]}  f4 {[%clk 0:02:28]} 16. Qxe4 {[%clk 0:01:59]}  fxg3 {[%clk 0:02:15]} 17. Bc4+ {[%clk 0:01:56]}  Kh8 {[%clk 0:02:15]} 18. fxg3 {[%clk 0:01:56]}  Nf6 {[%clk 0:01:59]} 19. Bd3 {[%clk 0:01:43]}  g6 {[%clk 0:01:28]} 20. Qxe5 {[%clk 0:01:35]}  Qd8 {[%clk 0:01:23]} 21. Rf4 {[%clk 0:01:22]}  Kg7 {[%clk 0:00:36]} 22. Raf1 {[%clk 0:01:21]}  Bd7 {[%clk 0:00:16]} 23. g4 {[%clk 0:01:16]}  h6 {[%clk 0:00:16]} 24. g5 {[%clk 0:01:13]}  hxg5 {[%clk 0:00:16]} 25. Qxg5 {[%clk 0:01:13]}  Be8 {[%clk 0:00:10]} 26. Rh4 {[%clk 0:01:05]}  Rh8 {[%clk 0:00:10]} 27. Rxh8 {[%clk 0:01:04]}  Kxh8 {[%clk 0:00:10]} 28. Rxf6 {[%clk 0:01:01]}  Kg7 {[%clk 0:00:06]} 29. Rxg6+ {[%clk 0:00:55]}  Bxg6 {[%clk 0:00:06]} 30. Qxg6+ {[%clk 0:00:54]}  Kf8 {[%clk 0:00:07]} 31. Bc4 {[%clk 0:00:53]}  Qe7 {[%clk 0:00:06]} 32. Qg8# {[%clk 0:00:53]} 1-0


[Site "https://www.chess.com"]

[Event "Titled Tuesday Blitz November 01 Late 2022"]
[White "Cadena M, Gustavo Adolfo"]
[Black "Beerdsen, Thomas"]
[WhiteFideId "4404815"]
[BlackFideId "1030108"]
[WhiteElo "2584"]
[BlackElo "2835"]
[Result "0-1"]
[Round "02"]
[TimeControl "180+1"]
[Date "2022.11.02"]
[WhiteClock "0:00:12"]
[BlackClock "0:01:00"]

1. d4 {[%clk 0:02:58]}  h6 {[%clk 0:03:00]} 2. c4 {[%clk 0:02:58]}  g5 {[%clk 0:03:00]} 3. Nc3 {[%clk 0:02:58]}  Bg7 {[%clk 0:03:01]} 4. h4 {[%clk 0:02:58]}  g4 {[%clk 0:03:01]} 5. e4 {[%clk 0:02:54]}  c5 {[%clk 0:02:59]} 6. d5 {[%clk 0:02:54]}  d6 {[%clk 0:02:59]} 7. Nge2 {[%clk 0:02:52]}  Nd7 {[%clk 0:02:58]} 8. h5 {[%clk 0:02:47]}  Ne5 {[%clk 0:02:53]} 9. Ng3 {[%clk 0:02:45]}  Nf6 {[%clk 0:02:51]} 10. Bf4 {[%clk 0:02:35]}  a6 {[%clk 0:02:44]} 11. Qd2 {[%clk 0:02:32]}  Bd7 {[%clk 0:02:41]} 12. a4 {[%clk 0:02:30]}  Qa5 {[%clk 0:02:40]} 13. Be2 {[%clk 0:02:29]}  b5 {[%clk 0:02:33]} 14. cxb5 {[%clk 0:02:23]}  axb5 {[%clk 0:02:34]} 15. Nxb5 {[%clk 0:02:11]}  Qxd2+ {[%clk 0:02:06]} 16. Kxd2 {[%clk 0:02:05]}  O-O {[%clk 0:02:07]} 17. Bxe5 {[%clk 0:01:55]}  dxe5 {[%clk 0:02:08]} 18. Rhc1 {[%clk 0:01:53]}  Rfc8 {[%clk 0:02:05]} 19. b3 {[%clk 0:01:49]}  e6 {[%clk 0:01:55]} 20. dxe6 {[%clk 0:01:46]}  Bxe6 {[%clk 0:01:55]} 21. Bc4 {[%clk 0:01:45]}  Nd7 {[%clk 0:01:31]} 22. Ke2 {[%clk 0:01:28]}  Ra5 {[%clk 0:01:14]} 23. Nf5 {[%clk 0:01:16]}  Bf8 {[%clk 0:01:11]} 24. Ne3 {[%clk 0:01:06]}  Nf6 {[%clk 0:01:09]} 25. Bxe6 {[%clk 0:01:02]}  fxe6 {[%clk 0:01:10]} 26. Nc4 {[%clk 0:01:02]}  Ra6 {[%clk 0:01:10]} 27. Nxe5 {[%clk 0:01:01]}  Bg7 {[%clk 0:01:07]} 28. Ra2 {[%clk 0:00:46]}  Nxh5 {[%clk 0:01:08]} 29. Nxg4 {[%clk 0:00:41]}  Nf4+ {[%clk 0:01:08]} 30. Kf1 {[%clk 0:00:40]}  Nd3 {[%clk 0:01:09]} 31. Rd1 {[%clk 0:00:36]}  c4 {[%clk 0:01:07]} 32. bxc4 {[%clk 0:00:33]}  Nb4 {[%clk 0:01:06]} 33. Rad2 {[%clk 0:00:32]}  h5 {[%clk 0:01:05]} 34. Ne3 {[%clk 0:00:27]}  Nc6 {[%clk 0:01:03]} 35. Rd7 {[%clk 0:00:23]}  Ne5 {[%clk 0:01:03]} 36. Rb7 {[%clk 0:00:23]}  Rxa4 {[%clk 0:01:01]} 37. Nd6 {[%clk 0:00:19]}  Rf8 {[%clk 0:01:01]} 38. g3 {[%clk 0:00:14]}  Bh6 {[%clk 0:01:00]} 39. f4 {[%clk 0:00:14]}  h4 {[%clk 0:00:59]} 40. Ng4 {[%clk 0:00:13]}  Nxg4 {[%clk 0:01:00]} 41. f5 {[%clk 0:00:11]}  Ne3+ {[%clk 0:01:00]} 42. Ke2 {[%clk 0:00:11]}  Ra2+ {[%clk 0:00:59]} 43. Kd3 {[%clk 0:00:11]}  Nxd1 {[%clk 0:00:59]} 44. fxe6 {[%clk 0:00:12]}  Rd2# {[%clk 0:01:00]} 0-1


[Site "https://www.chess.com"]

[Event "Titled Tuesday Blitz November 01 Late 2022"]
[White "Castellanos Gomez, Alejandro"]
[Black "Haszon, David"]
[WhiteFideId "22284141"]
[BlackFideId "733610"]
[WhiteElo "2168"]
[BlackElo "2211"]
[Result "1/2-1/2"]
[Round "02"]
[TimeControl "180+1"]
[Date "2022.11.02"]
[WhiteClock "0:00:04"]
[BlackClock "0:00:09"]

1. d4 {[%clk 0:03:00]}  Nf6 {[%clk 0:02:59]} 2. Bf4 {[%clk 0:03:01]}  d5 {[%clk 0:02:59]} 3. e3 {[%clk 0:03:01]}  c5 {[%clk 0:02:59]} 4. c3 {[%clk 0:03:01]}  Nc6 {[%clk 0:02:59]} 5. Nd2 {[%clk 0:03:01]}  e6 {[%clk 0:02:55]} 6. Ngf3 {[%clk 0:03:01]}  Bd6 {[%clk 0:02:56]} 7. Bg3 {[%clk 0:03:02]}  O-O {[%clk 0:02:54]} 8. Bd3 {[%clk 0:03:01]}  Qe7 {[%clk 0:02:54]} 9. Ne5 {[%clk 0:03:01]}  Nd7 {[%clk 0:02:53]} 10. Nxd7 {[%clk 0:02:58]}  Qxd7 {[%clk 0:02:52]} 11. Bxd6 {[%clk 0:02:54]}  Qxd6 {[%clk 0:02:52]} 12. dxc5 {[%clk 0:02:50]}  Qxc5 {[%clk 0:02:52]} 13. O-O {[%clk 0:02:21]}  f5 {[%clk 0:02:46]} 14. Rc1 {[%clk 0:02:04]}  e5 {[%clk 0:02:43]} 15. b4 {[%clk 0:01:51]}  Qd6 {[%clk 0:02:28]} 16. b5 {[%clk 0:01:51]}  Ne7 {[%clk 0:02:27]} 17. c4 {[%clk 0:01:52]}  e4 {[%clk 0:02:22]} 18. Be2 {[%clk 0:01:41]}  d4 {[%clk 0:01:52]} 19. c5 {[%clk 0:01:40]}  Qe5 {[%clk 0:01:49]} 20. Nc4 {[%clk 0:01:32]}  Qxc5 {[%clk 0:01:45]} 21. exd4 {[%clk 0:01:30]}  Qxb5 {[%clk 0:01:21]} 22. Ne5 {[%clk 0:01:25]}  Qb6 {[%clk 0:01:19]} 23. Bc4+ {[%clk 0:01:12]}  Be6 {[%clk 0:01:03]} 24. Rb1 {[%clk 0:01:12]}  Qd6 {[%clk 0:01:00]} 25. Qb3 {[%clk 0:00:53]}  Bd5 {[%clk 0:00:49]} 26. Bxd5+ {[%clk 0:00:43]}  Qxd5 {[%clk 0:00:47]} 27. Qxd5+ {[%clk 0:00:42]}  Nxd5 {[%clk 0:00:48]} 28. Rxb7 {[%clk 0:00:43]}  Rab8 {[%clk 0:00:44]} 29. Rxa7 {[%clk 0:00:41]}  Rb2 {[%clk 0:00:35]} 30. Re1 {[%clk 0:00:24]}  h5 {[%clk 0:00:28]} 31. g3 {[%clk 0:00:24]}  Rc8 {[%clk 0:00:28]} 32. Ra5 {[%clk 0:00:07]}  Nf6 {[%clk 0:00:25]} 33. Ng6 {[%clk 0:00:08]}  Rcc2 {[%clk 0:00:24]} 34. Rxf5 {[%clk 0:00:08]}  Ng4 {[%clk 0:00:21]} 35. Ne7+ {[%clk 0:00:03]}  Kh7 {[%clk 0:00:19]} 36. Rxh5+ {[%clk 0:00:04]}  Nh6 {[%clk 0:00:19]} 37. Re5 {[%clk 0:00:04]}  Rxf2 {[%clk 0:00:19]} 38. R5xe4 {[%clk 0:00:02]}  Rg2+ {[%clk 0:00:19]} 39. Kh1 {[%clk 0:00:02]}  Rxh2+ {[%clk 0:00:20]} 40. Kg1 {[%clk 0:00:03]}  Rbg2+ {[%clk 0:00:20]} 41. Kf1 {[%clk 0:00:04]}  Rf2+ {[%clk 0:00:18]} 42. Kg1 {[%clk 0:00:04]}  Rxa2 {[%clk 0:00:19]} 43. Rh4 {[%clk 0:00:03]}  Rhg2+ {[%clk 0:00:19]} 44. Kh1 {[%clk 0:00:03]}  Rxg3 {[%clk 0:00:19]} 45. Rg1 {[%clk 0:00:03]}  Re3 {[%clk 0:00:16]} 46. Nf5 {[%clk 0:00:02]}  Re6 {[%clk 0:00:16]} 47. Nxh6 {[%clk 0:00:03]}  Rxh6 {[%clk 0:00:16]} 48. Rxh6+ {[%clk 0:00:03]}  Kxh6 {[%clk 0:00:17]} 49. Rd1 {[%clk 0:00:03]}  Ra6 {[%clk 0:00:17]} 50. d5 {[%clk 0:00:02]}  Rd6 {[%clk 0:00:18]} 51. Kg2 {[%clk 0:00:03]}  Kg5 {[%clk 0:00:19]} 52. Kf3 {[%clk 0:00:03]}  Kf5 {[%clk 0:00:19]} 53. Kg3 {[%clk 0:00:01]}  Ke5 {[%clk 0:00:19]} 54. Kg4 {[%clk 0:00:02]}  Rg6+ {[%clk 0:00:16]} 55. Kh5 {[%clk 0:00:02]}  Rh6+ {[%clk 0:00:15]} 56. Kg5 {[%clk 0:00:02]}  Rd6 {[%clk 0:00:16]} 57. Kh5 {[%clk 0:00:02]}  Kf4 {[%clk 0:00:15]} 58. Rf1+ {[%clk 0:00:01]}  Ke4 {[%clk 0:00:15]} 59. Rf7 {[%clk 0:00:01]}  g6+ {[%clk 0:00:13]} 60. Kg5 {[%clk 0:00:01]}  Kxd5 {[%clk 0:00:12]} 61. Rf6 {[%clk 0:00:02]}  Rd8 {[%clk 0:00:11]} 62. Rxg6 {[%clk 0:00:03]}  Re8 {[%clk 0:00:11]} 63. Kh6 {[%clk 0:00:03]}  Re6 {[%clk 0:00:11]} 64. Kg5 {[%clk 0:00:03]}  Rxg6+ {[%clk 0:00:09]} 65. Kxg6 {[%clk 0:00:04]} 1/2-1/2


[Site "https://www.chess.com"]

[Event "Titled Tuesday Blitz November 01 Late 2022"]
[White "Clawitter, Craig"]
[Black "Hnydiuk, Aleksander"]
[WhiteFideId "2023105"]
[BlackFideId "1109057"]
[WhiteElo "2323"]
[BlackElo "2374"]
[Result "0-1"]
[Round "02"]
[TimeControl "180+1"]
[Date "2022.11.02"]
[WhiteClock "0:00:01"]
[BlackClock "0:00:03"]

1. e4 {[%clk 0:03:00]}  e6 {[%clk 0:02:59]} 2. d4 {[%clk 0:03:00]}  d5 {[%clk 0:03:00]} 3. e5 {[%clk 0:03:00]}  c5 {[%clk 0:03:00]} 4. c3 {[%clk 0:03:01]}  Nc6 {[%clk 0:03:00]} 5. Nf3 {[%clk 0:03:01]}  Qb6 {[%clk 0:03:00]} 6. a3 {[%clk 0:03:02]}  Bd7 {[%clk 0:02:57]} 7. b4 {[%clk 0:03:00]}  cxd4 {[%clk 0:02:57]} 8. cxd4 {[%clk 0:03:01]}  Nge7 {[%clk 0:02:51]} 9. Be3 {[%clk 0:02:59]}  Nf5 {[%clk 0:02:51]} 10. Bd3 {[%clk 0:02:58]}  Be7 {[%clk 0:02:26]} 11. O-O {[%clk 0:02:57]}  f6 {[%clk 0:02:22]} 12. Bxf5 {[%clk 0:02:31]}  exf5 {[%clk 0:02:23]} 13. Nc3 {[%clk 0:02:32]}  Be6 {[%clk 0:02:20]} 14. Na4 {[%clk 0:02:24]}  Qb5 {[%clk 0:02:05]} 15. exf6 {[%clk 0:02:12]}  gxf6 {[%clk 0:01:53]} 16. Re1 {[%clk 0:02:06]}  Bf7 {[%clk 0:01:29]} 17. Nc5 {[%clk 0:01:48]}  Bh5 {[%clk 0:00:59]} 18. a4 {[%clk 0:01:26]}  Qc4 {[%clk 0:00:42]} 19. Nxb7 {[%clk 0:00:55]}  O-O {[%clk 0:00:33]} 20. Rc1 {[%clk 0:00:39]}  Qxb4 {[%clk 0:00:32]} 21. Nc5 {[%clk 0:00:15]}  Bxc5 {[%clk 0:00:31]} 22. Rxc5 {[%clk 0:00:16]}  Ne7 {[%clk 0:00:25]} 23. Rc7 {[%clk 0:00:14]}  Rac8 {[%clk 0:00:20]} 24. Bd2 {[%clk 0:00:11]}  Bxf3 {[%clk 0:00:15]} 25. gxf3 {[%clk 0:00:11]}  Qxd2 {[%clk 0:00:10]} 26. Qxd2 {[%clk 0:00:10]}  Rxc7 {[%clk 0:00:11]} 27. Qh6 {[%clk 0:00:08]}  Ng6 {[%clk 0:00:10]} 28. Kh1 {[%clk 0:00:07]}  Rfc8 {[%clk 0:00:07]} 29. h4 {[%clk 0:00:06]}  Nf8 {[%clk 0:00:05]} 30. Rg1+ {[%clk 0:00:06]}  Kf7 {[%clk 0:00:04]} 31. Rg7+ {[%clk 0:00:03]}  Ke6 {[%clk 0:00:04]} 32. Rxc7 {[%clk 0:00:03]}  Rxc7 {[%clk 0:00:05]} 33. Qe3+ {[%clk 0:00:03]}  Kf7 {[%clk 0:00:04]} 34. Qf4 {[%clk 0:00:03]}  Ne6 {[%clk 0:00:04]} 35. Qd6 {[%clk 0:00:03]}  Rc1+ {[%clk 0:00:03]} 36. Kh2 {[%clk 0:00:03]}  Rd1 {[%clk 0:00:04]} 37. Qxd5 {[%clk 0:00:02]}  Rxd4 {[%clk 0:00:04]} 38. Qb7+ {[%clk 0:00:02]}  Kg6 {[%clk 0:00:04]} 39. h5+ {[%clk 0:00:02]}  Kh6 {[%clk 0:00:04]} 40. Qf7 {[%clk 0:00:01]}  Rh4+ {[%clk 0:00:04]} 41. Kg3 {[%clk 0:00:01]}  f4+ {[%clk 0:00:03]} 42. Kg2 {[%clk 0:00:01]}  Kg5 {[%clk 0:00:03]} 0-1


[Site "https://www.chess.com"]

[Event "Titled Tuesday Blitz November 01 Late 2022"]
[White "Coelho, Ramyres Santana"]
[Black "D`Arruda, Ricardo D."]
[WhiteFideId "2120690"]
[BlackFideId "100692"]
[WhiteElo "1888"]
[BlackElo "2474"]
[Result "0-1"]
[Round "02"]
[TimeControl "180+1"]
[Date "2022.11.02"]
[WhiteClock "0:00:08"]
[BlackClock "0:00:16"]

1. e4 {[%clk 0:02:59]}  c5 {[%clk 0:00:57]} 2. Nf3 {[%clk 0:02:58]}  Nc6 {[%clk 0:00:56]} 3. d4 {[%clk 0:02:58]}  cxd4 {[%clk 0:00:57]} 4. c3 {[%clk 0:02:57]}  e5 {[%clk 0:00:58]} 5. cxd4 {[%clk 0:02:57]}  exd4 {[%clk 0:00:59]} 6. Nxd4 {[%clk 0:02:58]}  Nf6 {[%clk 0:00:59]} 7. Nc3 {[%clk 0:02:58]}  Nxd4 {[%clk 0:00:58]} 8. Qxd4 {[%clk 0:02:58]}  d6 {[%clk 0:00:58]} 9. Bc4 {[%clk 0:02:58]}  Be7 {[%clk 0:00:59]} 10. O-O {[%clk 0:02:57]}  O-O {[%clk 0:01:00]} 11. f4 {[%clk 0:02:57]}  Be6 {[%clk 0:01:00]} 12. Be3 {[%clk 0:02:57]}  Bxc4 {[%clk 0:00:59]} 13. Qxc4 {[%clk 0:02:57]}  Rc8 {[%clk 0:00:59]} 14. Qd3 {[%clk 0:02:57]}  a6 {[%clk 0:01:00]} 15. a4 {[%clk 0:02:56]}  Qc7 {[%clk 0:01:00]} 16. Bd4 {[%clk 0:02:50]}  Qc4 {[%clk 0:01:01]} 17. Rad1 {[%clk 0:02:39]}  Qxd3 {[%clk 0:00:58]} 18. Rxd3 {[%clk 0:02:40]}  Rc4 {[%clk 0:00:58]} 19. b3 {[%clk 0:02:35]}  Rc7 {[%clk 0:00:57]} 20. Bxf6 {[%clk 0:02:33]}  Bxf6 {[%clk 0:00:58]} 21. Nd5 {[%clk 0:02:33]}  Rc6 {[%clk 0:00:58]} 22. Nxf6+ {[%clk 0:02:32]}  gxf6 {[%clk 0:00:59]} 23. Rfd1 {[%clk 0:02:31]}  Rd8 {[%clk 0:00:59]} 24. e5 {[%clk 0:02:28]}  fxe5 {[%clk 0:01:00]} 25. fxe5 {[%clk 0:02:29]}  d5 {[%clk 0:00:59]} 26. Rxd5 {[%clk 0:02:28]}  Rxd5 {[%clk 0:01:00]} 27. Rxd5 {[%clk 0:02:29]}  Rc3 {[%clk 0:00:57]} 28. b4 {[%clk 0:02:27]}  Rc4 {[%clk 0:00:56]} 29. b5 {[%clk 0:01:53]}  Rxa4 {[%clk 0:00:56]} 30. bxa6 {[%clk 0:01:52]}  bxa6 {[%clk 0:00:56]} 31. Kf2 {[%clk 0:01:41]}  Kg7 {[%clk 0:00:56]} 32. Kf3 {[%clk 0:01:37]}  Kf8 {[%clk 0:00:55]} 33. Rd8+ {[%clk 0:01:35]}  Ke7 {[%clk 0:00:56]} 34. Rh8 {[%clk 0:01:34]}  Rh4 {[%clk 0:00:55]} 35. h3 {[%clk 0:01:29]}  a5 {[%clk 0:00:53]} 36. Ra8 {[%clk 0:01:28]}  Ra4 {[%clk 0:00:52]} 37. Rh8 {[%clk 0:01:20]}  Rh4 {[%clk 0:00:51]} 38. Kg3 {[%clk 0:01:09]}  Rh5 {[%clk 0:00:48]} 39. Kf4 {[%clk 0:01:07]}  Rh4+ {[%clk 0:00:48]} 40. Kg5 {[%clk 0:01:01]}  Re4 {[%clk 0:00:44]} 41. Kf5 {[%clk 0:00:57]}  Re2 {[%clk 0:00:44]} 42. g4 {[%clk 0:00:55]}  Rf2+ {[%clk 0:00:41]} 43. Ke4 {[%clk 0:00:52]}  Re2+ {[%clk 0:00:41]} 44. Kf4 {[%clk 0:00:51]}  Rf2+ {[%clk 0:00:41]} 45. Ke3 {[%clk 0:00:46]}  Rh2 {[%clk 0:00:41]} 46. Rxh7 {[%clk 0:00:46]}  a4 {[%clk 0:00:41]} 47. g5 {[%clk 0:00:28]}  Ke6 {[%clk 0:00:40]} 48. Kf4 {[%clk 0:00:26]}  a3 {[%clk 0:00:38]} 49. Rh6+ {[%clk 0:00:23]}  Kd5 {[%clk 0:00:35]} 50. Rd6+ {[%clk 0:00:23]}  Kc5 {[%clk 0:00:34]} 51. Kg3 {[%clk 0:00:23]}  a2 {[%clk 0:00:29]} 52. Ra6 {[%clk 0:00:22]}  Re2 {[%clk 0:00:29]} 53. Kf4 {[%clk 0:00:18]}  Kd5 {[%clk 0:00:29]} 54. Ra5+ {[%clk 0:00:18]}  Ke6 {[%clk 0:00:29]} 55. h4 {[%clk 0:00:18]}  Rh2 {[%clk 0:00:27]} 56. Kg3 {[%clk 0:00:18]}  Re2 {[%clk 0:00:24]} 57. h5 {[%clk 0:00:17]}  Rxe5 {[%clk 0:00:21]} 58. Rxa2 {[%clk 0:00:16]}  Kf5 {[%clk 0:00:22]} 59. Kh4 {[%clk 0:00:17]}  Re4+ {[%clk 0:00:22]} 60. Kh3 {[%clk 0:00:17]}  Kxg5 {[%clk 0:00:22]} 61. Ra5+ {[%clk 0:00:17]}  f5 {[%clk 0:00:22]} 62. h6 {[%clk 0:00:17]}  Rh4+ {[%clk 0:00:22]} 63. Kg3 {[%clk 0:00:17]}  Rxh6 {[%clk 0:00:23]} 64. Ra4 {[%clk 0:00:16]}  Rd6 {[%clk 0:00:23]} 65. Ra3 {[%clk 0:00:16]}  Rd4 {[%clk 0:00:22]} 66. Rf3 {[%clk 0:00:15]}  Rb4 {[%clk 0:00:23]} 67. Kh3 {[%clk 0:00:15]}  Rh4+ {[%clk 0:00:22]} 68. Kg3 {[%clk 0:00:15]}  f4+ {[%clk 0:00:23]} 69. Kg2 {[%clk 0:00:15]}  Rh8 {[%clk 0:00:20]} 70. Ra3 {[%clk 0:00:14]}  Rb8 {[%clk 0:00:20]} 71. Ra5+ {[%clk 0:00:14]}  Kg4 {[%clk 0:00:19]} 72. Ra2 {[%clk 0:00:15]}  Rb3 {[%clk 0:00:19]} 73. Rf2 {[%clk 0:00:15]}  Rh3 {[%clk 0:00:18]} 74. Kg1 {[%clk 0:00:15]}  Re3 {[%clk 0:00:15]} 75. Kg2 {[%clk 0:00:15]}  f3+ {[%clk 0:00:15]} 76. Kf1 {[%clk 0:00:14]}  Rb3 {[%clk 0:00:13]} 77. Rc2 {[%clk 0:00:11]}  Kg3 {[%clk 0:00:13]} 78. Rc1 {[%clk 0:00:11]}  Rb2 {[%clk 0:00:14]} 79. Kg1 {[%clk 0:00:10]}  Rg2+ {[%clk 0:00:13]} 80. Kh1 {[%clk 0:00:09]}  Rh2+ {[%clk 0:00:13]} 81. Kg1 {[%clk 0:00:09]}  f2+ {[%clk 0:00:14]} 82. Kf1 {[%clk 0:00:08]}  Rh1+ {[%clk 0:00:15]} 83. Ke2 {[%clk 0:00:08]}  Rxc1 {[%clk 0:00:16]} 84. Kd2 {[%clk 0:00:08]}  f1=Q {[%clk 0:00:16]} 0-1


[Site "https://www.chess.com"]

[Event "Titled Tuesday Blitz November 01 Late 2022"]
[White "Djordjevic, Vuk"]
[Black "Tokhirjonova, Gulrukhbegim"]
[WhiteFideId "902098"]
[BlackFideId "14203626"]
[WhiteElo "2799"]
[BlackElo "2554"]
[Result "1-0"]
[Round "02"]
[TimeControl "180+1"]
[Date "2022.11.02"]
[WhiteClock "0:02:29"]
[BlackClock "0:01:21"]

1. d4 {[%clk 0:03:00]}  Nf6 {[%clk 0:02:55]} 2. Bg5 {[%clk 0:03:01]}  Ne4 {[%clk 0:02:53]} 3. Bf4 {[%clk 0:03:01]}  d5 {[%clk 0:02:53]} 4. e3 {[%clk 0:03:01]}  e6 {[%clk 0:02:50]} 5. Bd3 {[%clk 0:03:00]}  Bd6 {[%clk 0:02:50]} 6. Ne2 {[%clk 0:02:58]}  O-O {[%clk 0:02:49]} 7. O-O {[%clk 0:02:57]}  c5 {[%clk 0:02:48]} 8. Bxe4 {[%clk 0:02:55]}  dxe4 {[%clk 0:02:48]} 9. dxc5 {[%clk 0:02:55]}  Bxc5 {[%clk 0:02:44]} 10. Nbc3 {[%clk 0:02:55]}  f5 {[%clk 0:02:38]} 11. Nb5 {[%clk 0:02:55]}  Na6 {[%clk 0:02:35]} 12. Qxd8 {[%clk 0:02:53]}  Rxd8 {[%clk 0:02:35]} 13. Rfd1 {[%clk 0:02:54]}  Bd7 {[%clk 0:02:15]} 14. Nc7 {[%clk 0:02:52]}  Rac8 {[%clk 0:02:14]} 15. Nxa6 {[%clk 0:02:52]}  bxa6 {[%clk 0:02:15]} 16. Bg5 {[%clk 0:02:52]}  Bb5 {[%clk 0:01:57]} 17. Rxd8+ {[%clk 0:02:48]}  Rxd8 {[%clk 0:01:57]} 18. Bxd8 {[%clk 0:02:49]}  Bxe2 {[%clk 0:01:57]} 19. Re1 {[%clk 0:02:49]}  Bb5 {[%clk 0:01:57]} 20. b3 {[%clk 0:02:46]}  Kf7 {[%clk 0:01:56]} 21. c4 {[%clk 0:02:45]}  Bc6 {[%clk 0:01:56]} 22. Rd1 {[%clk 0:02:45]}  h6 {[%clk 0:01:55]} 23. Ba5 {[%clk 0:02:45]}  Be7 {[%clk 0:01:48]} 24. Bc3 {[%clk 0:02:45]}  g5 {[%clk 0:01:48]} 25. Bd4 {[%clk 0:02:45]}  a5 {[%clk 0:01:45]} 26. Bxa7 {[%clk 0:02:44]}  e5 {[%clk 0:01:45]} 27. Bb6 {[%clk 0:02:41]}  a4 {[%clk 0:01:45]} 28. bxa4 {[%clk 0:02:39]}  Bxa4 {[%clk 0:01:44]} 29. Rd5 {[%clk 0:02:40]}  Ke6 {[%clk 0:01:39]} 30. Bc7 {[%clk 0:02:39]}  Bf6 {[%clk 0:01:38]} 31. Rd6+ {[%clk 0:02:34]}  Ke7 {[%clk 0:01:38]} 32. Ra6 {[%clk 0:02:33]}  Bc2 {[%clk 0:01:32]} 33. Bd8+ {[%clk 0:02:33]}  Kxd8 {[%clk 0:01:32]} 34. Rxf6 {[%clk 0:02:33]}  f4 {[%clk 0:01:33]} 35. Rxh6 {[%clk 0:02:33]}  f3 {[%clk 0:01:32]} 36. c5 {[%clk 0:02:31]}  Kc7 {[%clk 0:01:30]} 37. a3 {[%clk 0:02:31]}  g4 {[%clk 0:01:29]} 38. h3 {[%clk 0:02:30]}  fxg2 {[%clk 0:01:21]} 39. hxg4 {[%clk 0:02:29]} 1-0


[Site "https://www.chess.com"]